fUSD/lending_fUSD_20240327
["ID","MTS","AMOUNT","RATE_DAILY","PERIOD"]
[320773537,1711553435512,-1029.84,0.00035288,15]
[320773538,1711553435523,-150.0,0.00035328,2]
[320773539,1711553435533,-483.75760749,0.00035334,2]
[320773540,1711553435543,-170.0,0.00035644,2]
[320773541,1711553435554,-1000.0,0.00035718,2]
[320773542,1711553435564,-500.0,0.000359,13]
[320773543,1711553435573,-13038.1496,0.00035914,2]
[320773544,1711553435583,-1611.1041,0.00035914,2]
[320773545,1711553435594,-151.1590359,0.00035914,2]
[320773546,1711553435605,-150.5,0.00035994,15]
[320773547,1711553435615,-23961.78342516,0.00036,4]
[320773548,1711553435631,-150.5,0.00036004,15]
[320773549,1711553435641,-152.41,0.00036004,15]
[320773550,1711553435652,-150.5,0.00036004,15]
[320773551,1711553435662,-158.37,0.00036004,2]
[320773552,1711553435672,-537.85971528,0.00036014,2]
[320773553,1711553435687,-12850.56144675,0.00036014,2]
[320773554,1711553435699,-775.55033462,0.00036014,2]
[320773555,1711553435720,-175035.01870335,0.00036014,2]
[320773556,1711553435729,-3949.4635,0.00036014,2]
[320773557,1711553435739,-150.0,0.00036049,2]
[320773558,1711553435749,-345.64082846,0.00036112,4]
[320773559,1711553435758,-3003.70632358,0.00036112,4]
[320773560,1711553435767,-400.0,0.00036114,2]
[320773561,1711553435777,-254.17,0.00036164,2]
[320773562,1711553435786,-151.1590358,0.00036473,2]
[320773563,1711553435796,-150.0,0.0003677,2]
[320773564,1711553435808,-1899.327265,0.000368,29]
[320773565,1711553435818,-500.0,0.00037,3]
[320773566,1711553435828,-201.92471811,0.00037,4]
[320773567,1711553435837,-151.1590358,0.00037032,2]
[320773568,1711553435846,-1265.86,0.00037284,2]
[320773569,1711553435855,-1500.0,0.000373,29]
[320773570,1711553435864,-651.76734906,0.00037329,4]
[320773571,1711553435873,-150.0,0.00037491,2]
[320773572,1711553435882,-151.1590358,0.0003759,2]
[320773573,1711553435892,-1500.0,0.000378,29]
[320773574,1711553435901,-370.78023331,0.0003789,10]
[320773575,1711553435911,-1029.84,0.00038027,15]
[320773576,1711553435921,-151.1590358,0.00038149,2]
[320773577,1711553435930,-150.0,0.00038212,2]
[320773578,1711553435940,-1500.0,0.000383,29]
[320773579,1711553435949,-1000.0,0.00038355,30]
[320773580,1711553435958,-585.01,0.00038356,2]
[320773581,1711553435968,-8346.37,0.00038356,60]
[320773582,1711553435977,-170.0,0.00038361,2]
[320773583,1711553435987,-313.44662575,0.00038384,10]
[320773584,1711553435997,-483.75760749,0.00038451,2]
[320773585,1711553436008,-647.989933,0.00038531,2]
[320773586,1711553436018,-157.857006,0.00038531,2]
[320773587,1711553436028,-155.0,0.000387,4]
[320773588,1711553436037,-151.1590358,0.00038708,2]
[320773589,1711553436048,-1500.0,0.000388,29]
[320773590,1711553436064,-1000.0,0.00038904,120]
[320773591,1711553436073,-1000.0,0.0003891,30]
[320773592,1711553436083,-150.0,0.00038933,2]
[320773593,1711553436093,-400.0,0.00038982,120]
[320773594,1711553436103,-550.0,0.00039,3]
[320773595,1711553436112,-479.2356685,0.00039,4]
[320773596,1711553436121,-647.989933,0.00039012,2]
[320773597,1711553436131,-1000.0,0.00039035,30]
[320773598,1711553436140,-221.14172414,0.00039144,5]
[320773599,1711553436149,-158.37,0.00039232,2]
[320773600,1711553436159,-2686.326146,0.00039241,7]
[320773601,1711553436168,-13555.66878286,0.00039242,2]
[320773602,1711553436177,-151.1590358,0.00039267,3]
[320773603,1711553436187,-2617.72,0.00039293,2]
[320773604,1711553436196,-2617.72,0.00039293,2]
[320773605,1711553436206,-2617.72,0.00039293,2]
[320773606,1711553436215,-2617.72,0.00039293,2]
[320773607,1711553436225,-2617.72,0.00039293,2]
[320773608,1711553436234,-2617.72,0.00039293,2]
[320773609,1711553436244,-2617.72,0.00039293,2]
[320773610,1711553436253,-2617.72,0.00039293,2]
[320773611,1711553436263,-2617.72,0.00039293,2]
[320773612,1711553436272,-2617.72,0.00039293,2]
[320773613,1711553436281,-2617.72,0.00039293,2]
[320773614,1711553436291,-2617.72,0.00039293,2]
[320773615,1711553436303,-2617.72,0.00039293,2]
[320773616,1711553436313,-2617.72,0.00039293,2]
[320773617,1711553436322,-2617.72,0.00039293,2]
[320773618,1711553436332,-2617.72,0.00039293,2]
[320773619,1711553436341,-2617.72,0.00039293,2]
[320773620,1711553436351,-2617.72,0.00039293,2]
[320773621,1711553436360,-2617.72,0.00039293,2]
[320773622,1711553436369,-2617.72,0.00039293,2]
[320773623,1711553436379,-2617.72,0.00039293,2]
[320773624,1711553436388,-2617.72,0.00039293,2]
[320773625,1711553436398,-2617.72,0.00039293,2]
[320773626,1711553436408,-2617.91458341,0.00039293,2]
[320773627,1711553436418,-1156.38464044,0.00039294,90]
[320773628,1711553436427,-19594.96330185,0.00039294,4]
[320773629,1711553436437,-600.0,0.000393,120]
[320773630,1711553436446,-1500.0,0.000393,29]
[320773631,1711553436455,-1103.75619033,0.000393,2]
[320773632,1711553436468,-221.90580249,0.00039344,2]
[320773633,1711553436477,-1151.12308279,0.00039354,9]
[320773634,1711553436487,-647.989933,0.00039494,2]
[320773635,1711553436497,-1265.86,0.00039548,2]
[320773636,1711553436510,-150.0,0.00039654,2]
[320773637,1711553436521,-1000.0,0.00039687,2]
[320773638,1711553436530,-167.26760921,0.000398,2]
[320773639,1711553436540,-176.89395504,0.000398,13]
[320773640,1711553436550,-185.64350062,0.000398,13]
[320773641,1711553436561,-174.41943752,0.000398,2]
[320773642,1711553436571,-7155.0,0.00039807,3]
[320773643,1711553436580,-151.1590358,0.00039826,6]
[320773644,1711553436590,-158.37,0.0003989,2]
[320773645,1711553436599,-158.37,0.0003989,2]
[320773646,1711553436610,-6196.76061467,0.00039897,2]
[320773647,1711553436620,-3274.5288,0.000399,2]
[320773648,1711553436629,-4011.0989,0.000399,2]
[320773649,1711553436639,-44999.99509662,0.000399,2]
[320773650,1711553436666,-2925.0,0.000399,2]
[320773651,1711553436678,-700.0,0.000399,2]
[320773801,1711553438318,-238.707474,0.0002,2]
[320773804,1711553438328,-157541.84839688,0.000399,2]
[320773818,1711553438403,-38833.1565065,0.000399,2]
[320773821,1711553438413,-9419.9772,0.000399,2]
[320773824,1711553438422,-100000.0,0.000399,2]
[320773827,1711553438432,-800.0,0.000399,14]
[320773830,1711553438442,-4076.0,0.0003997,15]
[320773833,1711553438451,-647.989933,0.00039976,2]
[320773836,1711553438461,-4076.0,0.0003998,15]
[320773839,1711553438472,-4076.0,0.0003999,15]
[320773842,1711553438481,-158.37,0.0003999,2]
[320773845,1711553438490,-3357.71176501,0.0004,4]
[320773847,1711553438499,-1877.47970494,0.0004,30]
[320773850,1711553438510,-14850.79675021,0.0004,4]
[320773853,1711553438519,-187539.09301742,0.0004,2]
[320773855,1711553438529,-192.22165366,0.0004,2]
[320773857,1711553438538,-150.0,0.00040375,2]
[320773859,1711553438547,-151.1590358,0.00040385,8]
[320773862,1711553438560,-647.989933,0.00040457,2]
[320773865,1711553438570,-1000.0,0.000406,15]
[320773868,1711553438579,-254.17,0.00040685,2]
[320773871,1711553438589,-1029.84,0.00040767,15]
[320773874,1711553438598,-1000.0,0.000409,15]
[320773877,1711553438608,-151.1590358,0.00040943,10]
[320773880,1711553438617,-8330.42679496,0.00041,4]
[320773883,1711553438629,-3332.97664968,0.00041,4]
[320773886,1711553438641,-15577.1492356,0.00041,4]
[320773889,1711553438650,-600.0,0.00041,3]
[320773892,1711553438659,-183.0,0.00041096,2]
[320773895,1711553438669,-180.44,0.00041096,2]
[320773898,1711553438678,-1500.0,0.00041096,120]
[320773901,1711553438687,-150.0,0.00041096,2]
[320773903,1711553438696,-5972.0,0.0004121,15]
[320773905,1711553438706,-5972.0,0.0004122,15]
[320773907,1711553438715,-5972.0,0.0004123,15]
[320773909,1711553438725,-9698.57,0.00041232,2]
[320773911,1711553438734,-151.1590358,0.00041502,12]
[320773913,1711553438744,-483.75760749,0.00041567,2]
[320773915,1711553438753,-1265.86,0.00041812,2]
[320773917,1711553438762,-151.1590358,0.00042061,14]
[320773919,1711553438771,-585.01,0.00042466,2]
[320773921,1711553438781,-151.1590358,0.0004262,16]
[320773923,1711553438790,-650.0,0.00043,3]
[320773925,1711553438800,-151.1590358,0.00043179,18]
[320773927,1711553438811,-13555.66878286,0.00043311,2]
[320773929,1711553438820,-1029.84,0.00043507,15]
[320773931,1711553438832,-2764.32,0.00043562,2]
[320773933,1711553438842,-1000.0,0.00043656,2]
[320773935,1711553438851,-151.1590358,0.00043737,20]
[320773937,1711553438861,-400.0,0.00043854,120]
[320773939,1711553438870,-1859.57814569,0.00044053,2]
[320773941,1711553438880,-1265.86,0.00044076,2]
[320773943,1711553438890,-151.1590358,0.00044296,23]
[320773945,1711553438899,-1151.12308279,0.00044467,11]
[320773947,1711553438908,-174.41943751,0.00044582,2]
[320773949,1711553438918,-483.75760749,0.00044684,2]
[320773951,1711553438927,-151.1590358,0.00044855,25]
[320773953,1711553438937,-14348.88063517,0.00045,4]
[320773955,1711553438947,-700.0,0.00045,3]
[320773957,1711553438956,-328.95124766,0.00045,4]
[320773959,1711553438966,-500.0,0.00045,14]
[320773961,1711553438975,-254.17,0.00045205,2]
[320773963,1711553438984,-151.1590358,0.00045414,27]
[320773965,1711553438994,-1515.0,0.000458,2]
[320773967,1711553439003,-151.1590358,0.00045973,29]
[320773969,1711553439013,-10000.0,0.00046,14]
[320773971,1711553439022,-10000.0,0.00046,14]
[320773973,1711553439031,-559.24,0.00046194,2]
[320773975,1711553439040,-924.51,0.00046194,2]
[320773977,1711553439049,-924.51,0.00046194,2]
[320773979,1711553439062,-409.3,0.00046194,2]
[320773981,1711553439071,-409.3,0.00046194,2]
[320773983,1711553439080,-924.51,0.00046194,2]
[320773985,1711553439089,-924.51,0.00046194,2]
[320773987,1711553439098,-409.3,0.00046194,2]
[320773989,1711553439108,-924.51,0.00046194,2]
[320773991,1711553439117,-409.3,0.00046194,2]
[320773993,1711553439127,-924.51,0.00046194,2]
[320773994,1711553439138,-409.3,0.00046194,2]
[320773996,1711553439147,-924.51,0.00046194,2]
[320773998,1711553439157,-409.3,0.00046194,2]
[320774000,1711553439166,-1029.84,0.00046247,15]
[320774002,1711553439175,-694.56,0.00046331,2]
[320774004,1711553439185,-517.72,0.00046331,2]
[320774006,1711553439199,-150.99,0.00046331,2]
[320774008,1711553439209,-150.0,0.00046331,2]
[320774010,1711553439218,-347.44,0.00046331,2]
[320774012,1711553439229,-150.0,0.00046331,2]
[320774014,1711553439241,-186.95,0.00046331,2]
[320774016,1711553439250,-306.79,0.00046331,2]
[320774018,1711553439259,-836.58,0.00046331,2]
[320774020,1711553439272,-303.9,0.00046331,2]
[320774022,1711553439282,-517.72,0.00046331,2]
[320774024,1711553439292,-150.0,0.00046331,2]
[320774026,1711553439304,-150.0,0.00046331,2]
[320774028,1711553439313,-161.39,0.00046331,2]
[320774030,1711553439323,-347.44,0.00046331,2]
[320774032,1711553439332,-150.0,0.00046331,2]
[320774034,1711553439342,-150.0,0.00046331,2]
[320774037,1711553439351,-517.72,0.00046331,2]
[320774038,1711553439360,-161.39,0.00046331,2]
[320774039,1711553439369,-347.44,0.00046331,2]
[320774040,1711553439378,-161.39,0.00046331,2]
[320774042,1711553439386,-517.72,0.00046331,2]
[320774044,1711553439395,-347.44,0.00046331,2]
[320774045,1711553439404,-150.0,0.00046331,2]
[320774046,1711553439414,-150.0,0.00046331,2]
[320774048,1711553439424,-345.8,0.00046331,2]
[320774049,1711553439433,-161.39,0.00046331,2]
[320774050,1711553439442,-517.72,0.00046331,2]
[320774051,1711553439452,-150.0,0.00046331,2]
[320774052,1711553439463,-150.0,0.00046331,2]
[320774053,1711553439473,-1265.86,0.0004634,2]
[320774055,1711553439483,-151.1590358,0.00046532,31]
[320774057,1711553439493,-585.01,0.00046575,2]
[320774060,1711553439503,-156.38,0.00046604,2]
[320774062,1711553439514,-750.0,0.00047,3]
[320774064,1711553439523,-151.1590358,0.0004709,33]
[320774066,1711553439533,-409.3,0.00047152,2]
[320774068,1711553439542,-409.3,0.00047152,2]
[320774070,1711553439553,-409.3,0.00047152,2]
[320774072,1711553439563,-409.3,0.00047152,2]
[320774074,1711553439573,-924.51,0.00047152,2]
[320774076,1711553439582,-924.51,0.00047152,2]
[320774078,1711553439593,-409.3,0.00047152,2]
[320774080,1711553439602,-161.39,0.00047152,2]
[320774082,1711553439612,-150.0,0.00047152,2]
[320774084,1711553439621,-924.51,0.00047152,2]
[320774086,1711553439631,-409.3,0.00047152,2]
[320774088,1711553439642,-161.39,0.00047152,2]
[320774090,1711553439652,-150.0,0.00047152,2]
[320774092,1711553439662,-924.51,0.00047152,2]
[320774094,1711553439673,-161.39,0.00047152,2]
[320774096,1711553439684,-924.51,0.00047152,2]
[320774098,1711553439694,-150.0,0.00047152,2]
[320774100,1711553439704,-924.51,0.00047152,2]
[320774102,1711553439714,-409.3,0.00047152,2]
[320774104,1711553439724,-161.39,0.00047152,2]
[320774106,1711553439734,-517.72,0.00047152,2]
[320774108,1711553439744,-150.0,0.00047152,2]
[320774110,1711553439756,-517.72,0.00047152,2]
[320774112,1711553439766,-150.0,0.00047152,2]
[320774114,1711553439777,-924.51,0.00047152,2]
[320774117,1711553439787,-150.0,0.00047152,2]
[320774119,1711553439796,-924.51,0.00047152,2]
[320774121,1711553439807,-150.0,0.00047152,2]
[320774122,1711553439817,-517.72,0.00047152,2]
[320774125,1711553439827,-924.51,0.00047152,2]
[320774127,1711553439838,-150.0,0.00047152,2]
[320774128,1711553439847,-517.72,0.00047152,2]
[320774130,1711553439857,-409.3,0.00047152,2]
[320774132,1711553439866,-517.72,0.00047152,2]
[320774134,1711553439876,-150.0,0.00047152,2]
[320774136,1711553439885,-924.51,0.00047152,2]
[320774138,1711553439894,-517.72,0.00047152,2]
[320774140,1711553439903,-300.0,0.00047152,2]
[320774142,1711553439912,-517.72,0.00047152,2]
[320774144,1711553439922,-409.3,0.00047152,2]
[320774146,1711553439931,-517.72,0.00047152,2]
[320774148,1711553439940,-409.3,0.00047152,2]
[320774150,1711553439950,-517.72,0.00047152,2]
[320774153,1711553439960,-517.72,0.00047152,2]
[320774155,1711553439969,-409.3,0.00047152,2]
[320774157,1711553439979,-409.3,0.00047152,2]
[320774159,1711553439988,-517.72,0.00047152,2]
[320774161,1711553439998,-409.3,0.00047152,2]
[320774163,1711553440007,-409.3,0.00047152,2]
[320774165,1711553440016,-409.3,0.00047152,2]
[320774167,1711553440026,-409.3,0.00047152,2]
[320774169,1711553440035,-409.3,0.00047152,2]
[320774170,1711553440045,-409.3,0.00047152,2]
[320774172,1711553440054,-509.8,0.00047152,2]
[320774174,1711553440063,-167.42,0.00047152,2]
[320774176,1711553440072,-150.0,0.00047152,2]
[320774178,1711553440082,-150.0,0.00047152,2]
[320774180,1711553440091,-150.0,0.00047152,2]
[320774183,1711553440101,-150.0,0.00047152,2]
[320774185,1711553440110,-150.0,0.00047152,2]
[320774186,1711553440120,-150.0,0.00047152,2]
[320774189,1711553440129,-150.0,0.00047152,2]
[320774191,1711553440138,-150.0,0.00047152,2]
[320774193,1711553440148,-500.0,0.000473,90]
[320774195,1711553440157,-923.65,0.00047316,2]
[320774196,1711553440166,-235.65,0.00047316,2]
[320774198,1711553440175,-13555.66878286,0.00047379,2]
[320774200,1711553440184,-7665.45,0.00047542,2]
[320774202,1711553440194,-1160.82,0.00047542,30]
[320774204,1711553440203,-12954.78,0.00047542,2]
[320774206,1711553440212,-1000.0,0.00047624,2]
[320774208,1711553440224,-151.1590358,0.00047649,35]
[320774211,1711553440233,-483.75760749,0.00047801,2]
[320774213,1711553440243,-150.0,0.00047863,120]
[320774214,1711553440255,-100000.0,0.00047919,7]
[320774216,1711553440264,-633.31,0.00048,7]
[320774218,1711553440273,-575.85,0.00048,7]
[320774221,1711553440283,-10000.0,0.00048178,30]
[320774223,1711553440292,-151.1590358,0.00048208,37]
[320774224,1711553440301,-1265.86,0.00048604,2]
[320774227,1711553440315,-1111.0,0.000487,4]
[320774228,1711553440324,-19833.06170046,0.000487,2]
[320774230,1711553440334,-1018.0,0.000487,117]
[320774232,1711553440344,-400.0,0.00048727,120]
[320774234,1711553440354,-151.1590358,0.00048767,39]
[320774236,1711553440364,-150.0,0.00048797,30]
[320774238,1711553440374,-32594.04303745,0.00048798,10]
[320774240,1711553440384,-633.31,0.000488,7]
[320774242,1711553440393,-575.85,0.000488,7]
[320774244,1711553440403,-1029.84,0.00048986,15]
[320774246,1711553440412,-3303.34437691,0.00049,2]
[320774248,1711553440422,-800.0,0.00049,3]
[320774250,1711553440431,-12505.0,0.00049,14]
[320774252,1711553440439,-150.0,0.00049212,120]
[320774254,1711553440449,-200.0,0.000493,2]
[320774256,1711553440460,-195.0,0.000493,2]
[320774258,1711553440470,-1250.0,0.000493,2]
[320774261,1711553440481,-1000.0,0.000493,2]
[320774263,1711553440490,-453.0,0.000493,2]
[320774265,1711553440500,-692.0,0.000493,2]
[320774266,1711553440510,-501.19848525,0.000493,2]
[320774269,1711553440523,-2000.0,0.00049315,30]
[320774270,1711553440532,-1000.0,0.00049315,60]
[320774272,1711553440541,-3073.0,0.00049315,120]
[320774274,1711553440551,-3119.0,0.00049315,120]
[320774276,1711553440564,-151.1590358,0.00049326,42]
[320774279,1711553440574,-174.41943751,0.00049364,2]
[320774280,1711553440583,-1151.12308279,0.00049581,14]
[320774282,1711553440593,-2000.0,0.00049589,30]
[320774284,1711553440603,-1010.0,0.00049597,7]
[320774287,1711553440613,-633.31,0.000496,7]
[320774289,1711553440623,-575.85,0.000496,7]
[320774290,1711553440631,-150.0,0.00049751,120]
[320774291,1711553440641,-2000.0,0.00049863,30]
[320774292,1711553440650,-150.0,0.00049882,30]
[320774293,1711553440660,-151.1590358,0.00049885,44]
[320774295,1711553440669,-1100.0,0.000499,18]
[320774296,1711553440678,-1013.0,0.0004997,15]
[320774297,1711553440687,-1013.0,0.0004998,15]
[320774298,1711553440697,-1013.0,0.0004999,15]
[320774299,1711553440707,-17560.53763991,0.0005,120]
[320774300,1711553440716,-2641.26513815,0.0005,30]
[320774301,1711553440725,-155.0,0.0005,2]
[320774302,1711553440735,-19192.93017925,0.0005,30]
[320774303,1711553440745,-5000.0,0.0005,30]
[320774304,1711553440754,-2000.0,0.0005,120]
[320774305,1711553440764,-734.92930057,0.0005,14]
[320774306,1711553440773,-41350.0,0.0005,120]
[320774307,1711553440782,-7137.00982734,0.0005,14]
[320774308,1711553440792,-10000.0,0.0005,14]
[320774309,1711553440801,-10000.0,0.0005,14]
[320774310,1711553440812,-430.19799114,0.0005,28]
[320774311,1711553440822,-421.0110837,0.0005,30]
[320774312,1711553440831,-333.72,0.0005,7]
[320774313,1711553440841,-300.78474529,0.0005,2]
[320774314,1711553440851,-633.31,0.000501,7]
[320774315,1711553440861,-575.85,0.000501,7]
[320774316,1711553440871,-2000.0,0.00050136,30]
[320774317,1711553440881,-4000.0,0.00050137,120]
[320774318,1711553440890,-278.0,0.00050165,120]
[320774319,1711553440900,-604.0,0.00050165,120]
[320774320,1711553440910,-433.0,0.00050165,120]
[320774321,1711553440919,-1267.0,0.00050165,120]
[320774322,1711553440929,-802.0,0.00050165,120]
[320774323,1711553440939,-1461.0,0.00050165,120]
[320774324,1711553440948,-150.0,0.00050165,120]
[320774325,1711553440957,-1138.0,0.00050165,120]
[320774326,1711553440967,-358.0,0.00050165,120]
[320774327,1711553440976,-2959.0,0.00050165,120]
[320774328,1711553440984,-1626.0,0.00050165,120]
[320774329,1711553440993,-2423.0,0.00050165,120]
[320774330,1711553441002,-258.0,0.00050165,2]
[320774331,1711553441012,-192.0,0.00050165,120]
[320774332,1711553441021,-213.0,0.00050165,2]
[320774333,1711553441030,-1046.0,0.00050165,120]
[320774334,1711553441040,-5676.0,0.00050165,120]
[320774335,1711553441049,-1382.689,0.00050165,120]
[320774336,1711553441061,-961.817,0.00050165,120]
[320774337,1711553441071,-4771.0,0.00050165,120]
[320774338,1711553441080,-2420.0,0.00050165,120]
[320774339,1711553441089,-458.0,0.00050165,120]
[320774340,1711553441098,-22457.772,0.00050165,120]
[320774341,1711553441108,-1176.0,0.00050165,120]
[320774342,1711553441117,-2449.0,0.00050165,120]
[320774343,1711553441126,-2000.0,0.00050277,10]
[320774344,1711553441136,-333.72,0.000503,7]
[320774345,1711553441144,-2000.0,0.0005041,30]
[320774346,1711553441153,-151.1590358,0.00050443,46]
[320774347,1711553441163,-2000.0,0.00050684,30]
[320774348,1711553441171,-1000.0,0.00050684,60]
[320774349,1711553441180,-585.01,0.00050685,2]
[320774350,1711553441190,-200.0,0.00050728,30]
[320774351,1711553441199,-1309.29,0.00050769,10]
[320774352,1711553441208,-354.17,0.000508,7]
[320774353,1711553441218,-333.72,0.000508,7]
[320774354,1711553441228,-1265.86,0.00050868,2]
[320774355,1711553441238,-6196.76061467,0.00050897,2]
[320774356,1711553441249,-5140.62313622,0.000509,120]
[320774357,1711553441259,-5140.62313613,0.000509,120]
[320774358,1711553441269,-5140.62313613,0.000509,120]
[320774359,1711553441278,-5140.62313613,0.000509,120]
[320774360,1711553441287,-5140.62313613,0.000509,120]
[320774361,1711553441297,-5140.62313613,0.000509,120]
[320774362,1711553441308,-5140.62313613,0.000509,120]
[320774363,1711553441318,-5140.62313613,0.000509,120]
[320774364,1711553441327,-5140.62313613,0.000509,120]
[320774365,1711553441336,-5140.62313613,0.000509,120]
[320774366,1711553441346,-5140.62313613,0.000509,120]
[320774367,1711553441356,-5140.62313613,0.000509,120]
[320774368,1711553441365,-5140.62313613,0.000509,120]
[320774369,1711553441375,-5140.62313613,0.000509,120]
[320774370,1711553441384,-5140.62313613,0.000509,120]
[320774371,1711553441393,-5140.62313613,0.000509,120]
[320774372,1711553441402,-5140.62313613,0.000509,120]
[320774373,1711553441412,-5140.62313613,0.000509,120]
[320774374,1711553441422,-483.75760749,0.00050917,2]
[320774375,1711553441432,-2000.0,0.00050958,30]
[320774376,1711553441442,-150.0,0.00050966,30]
[320774377,1711553441452,-4260.32816524,0.00051,120]
[320774378,1711553441463,-4189.0,0.00051,9]
[320774379,1711553441475,-633.31,0.00051,7]
[320774380,1711553441485,-151.1590358,0.00051002,48]
[320774381,1711553441494,-150.97,0.0005107,15]
[320774382,1711553441503,-164.71,0.0005107,15]
[320774383,1711553441514,-262.0,0.0005107,15]
[320774384,1711553441523,-432.0,0.0005107,15]
[320774385,1711553441532,-150.5,0.0005108,15]
[320774386,1711553441541,-150.78,0.0005108,15]
[320774387,1711553441764,-150.5,0.0005108,15]
[320774388,1711553441775,-262.0,0.0005108,15]
[320774389,1711553441785,-432.0,0.0005108,15]
[320774390,1711553441794,-150.71,0.0005109,15]
[320774391,1711553441803,-150.5,0.0005109,15]
[320774392,1711553441813,-150.5,0.0005109,15]
[320774393,1711553441822,-150.85,0.0005109,15]
[320774394,1711553441832,-150.5,0.0005109,15]
[320774395,1711553441843,-150.92,0.0005109,15]
[320774396,1711553441853,-150.73,0.0005109,15]
[320774397,1711553441863,-262.0,0.0005109,15]
[320774398,1711553441873,-432.0,0.0005109,15]
[320774399,1711553441882,-1667.50820547,0.000511,30]
[320774400,1711553441891,-22460.87192228,0.000511,7]
[320774401,1711553441901,-17591.0,0.000512,120]
[320774402,1711553441910,-1207.03,0.00051232,30]
[320774403,1711553441919,-500.0,0.0005125,120]
[320774404,1711553441929,-13555.66878286,0.00051448,2]
[320774405,1711553441938,-500.0,0.00051505,90]
[320774406,1711553441948,-500.0,0.00051505,90]
[320774407,1711553441957,-2081.86376376,0.00051534,14]
[320774408,1711553441968,-151.1590358,0.00051561,50]
[320774409,1711553441977,-151.0,0.00051571,2]
[320774410,1711553441987,-1029.84,0.00051726,120]
[320774411,1711553441996,-500.0,0.00051779,90]
[320774412,1711553442006,-88551.59835577,0.000518,2]
[320774413,1711553442016,-249.07051584,0.00051903,10]
[320774414,1711553442026,-1843.53177233,0.00051922,10]
[320774415,1711553442035,-150.0,0.00051979,120]
[320774416,1711553442045,-2453.93463849,0.00051984,10]
[320774417,1711553442055,-2348.57991699,0.00051989,10]
[320774418,1711553442064,-243.70899005,0.0005199,120]
[320774419,1711553442074,-1509.41569674,0.00051999,10]
[320774420,1711553442084,-2437.42170417,0.00052,120]
[320774421,1711553442093,-14274.46346578,0.00052,120]
[320774422,1711553442102,-5777.01161238,0.00052,120]
[320774423,1711553442112,-5000.0,0.00052,120]
[320774424,1711553442122,-10000.0,0.00052,120]
[320774425,1711553442132,-10000.0,0.00052,120]
[320774426,1711553442141,-2499.99,0.00052,120]
[320774427,1711553442152,-2499.99,0.00052,120]
[320774428,1711553442163,-2499.99,0.00052,120]
[320774429,1711553442172,-5000.0,0.00052,120]
[320774430,1711553442182,-5000.0,0.00052,120]
[320774431,1711553442191,-2500.0,0.00052,120]
[320774432,1711553442200,-451.73,0.00052,120]
[320774433,1711553442210,-2499.99,0.00052,120]
[320774435,1711553442220,-5000.0,0.00052,120]
[320774437,1711553442229,-29148.13710744,0.00052,30]
[320774439,1711553442239,-150.0,0.0005205,30]
[320774440,1711553442248,-500.0,0.00052053,90]
[320774441,1711553442258,-500.0,0.00052053,90]
[320774442,1711553442268,-3685.55096896,0.00052054,120]
[320774443,1711553442278,-3000.0,0.00052054,120]
[320774444,1711553442287,-1000.0,0.00052054,60]
[320774445,1711553442296,-2864.5,0.00052054,2]
[320774446,1711553442306,-1000.0,0.00052055,120]
[320774447,1711553442316,-1000.0,0.00052055,120]
[320774448,1711553442325,-5000.0,0.000521,120]